fUSD/lending_fUSD_20240803
["ID","MTS","AMOUNT","RATE_DAILY","PERIOD"]
[334063494,1722715847718,-500.0,0.00024657,9]
[334063495,1722715847727,-299.38,0.00024657,9]
[334063496,1722715847736,-500.0,0.00024657,9]
[334063497,1722715847745,-244.38,0.00024657,9]
[334063498,1722715847754,-500.0,0.00024657,9]
[334063499,1722715847763,-500.0,0.00024657,9]
[334063500,1722715847772,-500.0,0.00024657,9]
[334063501,1722715847782,-529.14,0.00024657,9]
[334063502,1722715847791,-513.15,0.00024657,9]
[334063503,1722715847800,-555.24,0.00024657,9]
[334063504,1722715847809,-500.0,0.00024657,9]
[334063505,1722715847822,-363.38517964,0.00024657,9]
[334063506,1722715847831,-500.0,0.00024657,9]
[334063507,1722715847840,-500.0,0.00024657,9]
[334063508,1722715847849,-500.0,0.00024657,9]
[334063509,1722715847859,-500.0,0.00024657,9]
[334063510,1722715847868,-613.74,0.00024657,9]
[334063511,1722715847877,-500.0,0.00024657,9]
[334063512,1722715847887,-500.0,0.00024657,9]
[334063513,1722715847896,-500.0,0.00024657,9]
[334063514,1722715847906,-500.0,0.00024657,9]
[334063515,1722715847915,-541.45,0.00024657,9]
[334063516,1722715847923,-503.37,0.00024657,9]
[334063517,1722715847934,-500.0,0.00024657,9]
[334063518,1722715847943,-500.0,0.00024657,9]
[334063519,1722715847953,-500.0,0.00024657,9]
[334063520,1722715847963,-500.0,0.00024657,9]
[334063521,1722715847972,-500.0,0.00024657,9]
[334063522,1722715847981,-575.3,0.00024657,9]
[334063523,1722715847990,-500.0,0.00024657,9]
[334063524,1722715847999,-500.0,0.00024657,9]
[334063525,1722715848007,-290.29,0.00024657,9]
[334063526,1722715848016,-500.0,0.00024657,9]
[334063527,1722715848026,-494.43570398,0.00024657,9]
[334063528,1722715848034,-500.0,0.00024657,9]
[334063529,1722715848043,-500.0,0.00024657,9]
[334063530,1722715848052,-500.0,0.00024657,9]
[334063531,1722715848061,-500.0,0.00024657,9]
[334063532,1722715848070,-500.0,0.00024657,9]
[334063533,1722715848079,-500.0,0.00024657,9]
[334063534,1722715848088,-500.0,0.00024657,9]
[334063535,1722715848098,-500.0,0.00024657,9]
[334063536,1722715848107,-500.0,0.00024657,9]
[334063537,1722715848116,-500.0,0.00024657,9]
[334063538,1722715848125,-568.13,0.00024657,9]
[334063539,1722715848134,-500.0,0.00024657,9]
[334063540,1722715848143,-500.0,0.00024657,9]
[334063541,1722715848152,-600.64,0.00024657,9]
[334063542,1722715848161,-500.0,0.00024657,9]
[334063543,1722715848171,-500.0,0.00024657,9]
[334063544,1722715848180,-500.0,0.00024657,9]
[334063545,1722715848189,-500.0,0.00024657,9]
[334063546,1722715848198,-500.0,0.00024657,9]
[334063547,1722715848207,-581.75,0.00024657,9]
[334063548,1722715848217,-531.88,0.00024657,9]
[334063549,1722715848226,-500.0,0.00024657,9]
[334063550,1722715848235,-500.0,0.00024657,9]
[334063551,1722715848244,-500.0,0.00024657,9]
[334063552,1722715848253,-500.0,0.00024657,9]
[334063553,1722715848262,-532.15,0.00024657,9]
[334063554,1722715848272,-533.23,0.00024657,9]
[334063555,1722715848282,-533.95,0.00024657,9]
[334063556,1722715848291,-500.0,0.00024657,9]
[334063557,1722715848304,-455.1144171,0.00024657,9]
[334063558,1722715848313,-500.0,0.00024657,9]
[334063559,1722715848322,-500.0,0.00024657,9]
[334063560,1722715848332,-500.0,0.00024657,9]
[334063561,1722715848341,-500.0,0.00024657,9]
[334063562,1722715848351,-640.56,0.00024657,9]
[334063563,1722715848360,-500.0,0.00024657,9]
[334063564,1722715848371,-562.96,0.00024657,9]
[334063565,1722715848380,-500.0,0.00024657,9]
[334063566,1722715848390,-500.0,0.00024657,9]
[334063567,1722715848400,-500.0,0.00024657,9]
[334063568,1722715848409,-500.0,0.00024657,9]
[334063569,1722715848419,-500.0,0.00024657,9]
[334063570,1722715848428,-500.0,0.00024657,9]
[334063571,1722715848438,-281.29,0.00024657,9]
[334063572,1722715848449,-534.11,0.00024657,9]
[334063573,1722715848458,-500.0,0.00024657,9]
[334063574,1722715848472,-573.66,0.00024657,9]
[334063575,1722715848482,-500.0,0.00024657,9]
[334063576,1722715848491,-500.0,0.00024657,9]
[334063577,1722715848501,-500.0,0.00024657,9]
[334063578,1722715848511,-633.74,0.00024657,9]
[334063579,1722715848520,-500.0,0.00024657,9]
[334063580,1722715848530,-500.0,0.00024657,9]
[334063581,1722715848540,-500.0,0.00024657,9]
[334063582,1722715848549,-500.0,0.00024657,9]
[334063583,1722715848559,-500.0,0.00024657,9]
[334063584,1722715848568,-444.09820199,0.00024657,9]
[334063585,1722715848577,-500.0,0.00024657,9]
[334063586,1722715848586,-500.0,0.00024657,9]
[334063587,1722715848595,-500.0,0.00024657,9]
[334063588,1722715848605,-500.0,0.00024657,9]
[334063589,1722715848614,-500.0,0.00024657,9]
[334063590,1722715848622,-500.0,0.00024657,9]
[334063591,1722715848632,-500.0,0.00024657,9]
[334063592,1722715848642,-500.0,0.00024657,9]
[334063593,1722715848651,-500.0,0.00024657,9]
[334063594,1722715848660,-500.0,0.00024657,9]
[334063595,1722715848669,-500.0,0.00024657,9]
[334063596,1722715848678,-533.82,0.00024657,9]
[334063597,1722715848687,-253.59,0.00024657,9]
[334063598,1722715848698,-199.12,0.00024657,9]
[334063599,1722715848707,-624.78250614,0.00024657,9]
[334063600,1722715848716,-500.0,0.00024657,9]
[334063601,1722715848725,-556.04,0.00024657,9]
[334063602,1722715848733,-500.0,0.00024657,9]
[334063603,1722715848743,-500.0,0.00024657,9]
[334063604,1722715848752,-500.0,0.00024657,9]
[334063605,1722715848762,-410.79,0.00024657,9]
[334063606,1722715848771,-500.0,0.00024657,9]
[334063607,1722715848780,-500.0,0.00024657,9]
[334063608,1722715848789,-500.0,0.00024657,9]
[334063609,1722715848798,-500.0,0.00024657,9]
[334063610,1722715848808,-500.0,0.00024657,9]
[334063611,1722715848821,-500.0,0.00024657,9]
[334063612,1722715848830,-500.0,0.00024657,9]
[334063613,1722715848839,-258.82,0.00024657,9]
[334063614,1722715848848,-500.0,0.00024657,9]
[334063615,1722715848858,-500.0,0.00024657,9]
[334063616,1722715848867,-500.0,0.00024657,9]
[334063617,1722715848876,-500.0,0.00024657,9]
[334063618,1722715848885,-500.0,0.00024657,9]
[334063619,1722715848896,-500.0,0.00024657,9]
[334063620,1722715848905,-294.27,0.00024657,9]
[334063621,1722715848915,-500.0,0.00024657,9]
[334063622,1722715848924,-500.0,0.00024657,9]
[334063623,1722715848933,-178.26,0.00024657,9]
[334063624,1722715848941,-500.0,0.00024657,9]
[334063625,1722715848952,-598.38,0.00024657,9]
[334063626,1722715848961,-500.0,0.00024657,9]
[334063627,1722715848970,-500.0,0.00024657,9]
[334063628,1722715848979,-500.0,0.00024657,9]
[334063629,1722715848988,-500.0,0.00024657,9]
[334063630,1722715848997,-500.0,0.00024657,9]
[334063631,1722715849007,-500.0,0.00024657,9]
[334063632,1722715849016,-500.0,0.00024657,9]
[334063633,1722715849025,-500.0,0.00024657,9]
[334063634,1722715849035,-500.0,0.00024657,9]
[334063635,1722715849043,-500.0,0.00024657,9]
[334063636,1722715849053,-500.0,0.00024657,9]
[334063637,1722715849061,-500.0,0.00024657,9]
[334063638,1722715849070,-500.0,0.00024657,9]
[334063639,1722715849079,-500.0,0.00024657,9]
[334063640,1722715849089,-500.0,0.00024657,9]
[334063641,1722715849098,-573.24,0.00024657,9]
[334063642,1722715849106,-461.24,0.00024657,9]
[334063643,1722715849115,-500.0,0.00024657,9]
[334063644,1722715849124,-459.51910635,0.00024657,9]
[334063645,1722715849133,-500.0,0.00024657,9]
[334063646,1722715849142,-224.88,0.00024657,9]
[334063647,1722715849150,-500.0,0.00024657,9]
[334063648,1722715849159,-500.0,0.00024657,9]
[334063649,1722715849168,-500.0,0.00024657,9]
[334063650,1722715849177,-500.0,0.00024657,9]
[334063651,1722715849185,-500.0,0.00024657,9]
[334063652,1722715849195,-500.0,0.00024657,9]
[334063653,1722715849204,-500.0,0.00024657,9]
[334063654,1722715849213,-500.0,0.00024657,9]
[334063655,1722715849222,-500.0,0.00024657,9]
[334063656,1722715849231,-366.19719232,0.00024657,9]
[334063657,1722715849240,-500.0,0.00024657,9]
[334063658,1722715849249,-500.0,0.00024657,9]
[334063659,1722715849258,-281.62,0.00024657,9]
[334063660,1722715849267,-500.0,0.00024657,9]
[334063661,1722715849276,-500.0,0.00024657,9]
[334063662,1722715849285,-500.0,0.00024657,9]
[334063663,1722715849295,-500.0,0.00024657,9]
[334063664,1722715849305,-550.93,0.00024657,9]
[334063665,1722715849315,-500.0,0.00024657,9]
[334063666,1722715849324,-573.77962354,0.00024657,9]
[334063667,1722715849333,-500.0,0.00024657,9]
[334063668,1722715849342,-500.0,0.00024657,9]
[334063669,1722715849351,-500.0,0.00024657,9]
[334063670,1722715849360,-500.0,0.00024657,9]
[334063671,1722715849369,-500.0,0.00024657,9]
[334063672,1722715849378,-500.0,0.00024657,9]
[334063673,1722715849387,-500.0,0.00024657,9]
[334063674,1722715849397,-500.0,0.00024657,9]
[334063675,1722715849406,-500.0,0.00024657,9]
[334063676,1722715849415,-646.64,0.00024657,9]
[334063677,1722715849424,-500.0,0.00024657,9]
[334063678,1722715849433,-500.0,0.00024657,9]
[334063679,1722715849443,-500.0,0.00024657,9]
[334063680,1722715849456,-500.0,0.00024657,9]
[334063681,1722715849467,-500.0,0.00024657,9]
[334063682,1722715849476,-500.0,0.00024657,9]
[334063683,1722715849485,-500.0,0.00024657,9]
[334063684,1722715849495,-391.02,0.00024657,9]
[334063685,1722715849504,-262.78,0.00024657,9]
[334063686,1722715849513,-500.0,0.00024657,9]
[334063687,1722715849523,-500.0,0.00024657,9]
[334063688,1722715849532,-500.0,0.00024657,9]
[334063689,1722715849541,-500.0,0.00024657,9]
[334063690,1722715849550,-500.0,0.00024657,9]
[334063691,1722715849559,-500.0,0.00024657,9]
[334063692,1722715849568,-458.79,0.00024657,9]
[334063693,1722715849578,-500.0,0.00024657,9]
[334063694,1722715849587,-500.0,0.00024657,9]
[334063695,1722715849596,-500.0,0.00024657,9]
[334063696,1722715849606,-633.26,0.00024657,9]
[334063697,1722715849615,-500.0,0.00024657,9]
[334063698,1722715849624,-500.0,0.00024657,9]
[334063699,1722715849634,-500.0,0.00024657,9]
[334063700,1722715849644,-500.0,0.00024657,9]
[334063701,1722715849654,-500.0,0.00024657,9]
[334063702,1722715849663,-621.32,0.00024657,9]
[334063703,1722715849673,-500.0,0.00024657,9]
[334063704,1722715849682,-500.0,0.00024657,9]
[334063705,1722715849693,-500.0,0.00024657,9]
[334063706,1722715849706,-500.0,0.00024657,9]
[334063707,1722715849715,-500.0,0.00024657,9]
[334063708,1722715849725,-500.0,0.00024657,9]
[334063709,1722715849735,-500.0,0.00024657,9]
[334063710,1722715849744,-500.0,0.00024657,9]
[334063711,1722715849753,-500.0,0.00024657,9]
[334063712,1722715849762,-500.0,0.00024657,9]
[334063713,1722715849772,-500.0,0.00024657,9]
[334063714,1722715849781,-500.0,0.00024657,9]
[334063715,1722715849791,-394.52,0.00024657,9]
[334063716,1722715849801,-220.89885307,0.00024657,9]
[334063717,1722715849812,-500.0,0.00024657,9]
[334063718,1722715849823,-422.83,0.00024657,9]
[334063719,1722715849832,-500.0,0.00024657,9]
[334063720,1722715849841,-500.0,0.00024657,9]
[334063721,1722715849850,-448.02,0.00024657,9]
[334063722,1722715849860,-500.0,0.00024657,9]
[334063723,1722715849870,-558.83,0.00024657,9]
[334063724,1722715849879,-500.0,0.00024657,9]
[334063725,1722715849889,-500.0,0.00024657,9]
[334063726,1722715849898,-500.0,0.00024657,9]
[334063727,1722715849908,-500.0,0.00024657,9]
[334063728,1722715849917,-179.69,0.00024657,9]
[334063729,1722715849925,-500.0,0.00024657,9]
[334063730,1722715849936,-575.49,0.00024657,9]
[334063731,1722715849949,-500.0,0.00024657,9]
[334063732,1722715849959,-500.0,0.00024657,9]
[334063733,1722715849969,-500.0,0.00024657,9]
[334063734,1722715849979,-500.0,0.00024657,9]
[334063735,1722715849989,-500.0,0.00024657,9]
[334063736,1722715849998,-500.0,0.00024657,9]
[334063737,1722715850008,-500.0,0.00024657,9]
[334063738,1722715850017,-500.0,0.00024657,9]
[334063739,1722715850027,-500.0,0.00024657,9]
[334063740,1722715850036,-155.49,0.00024657,9]
[334063741,1722715850045,-500.0,0.00024657,9]
[334063742,1722715850055,-509.35,0.00024657,9]
[334063743,1722715850064,-500.0,0.00024657,9]
[334063744,1722715850073,-500.0,0.00024657,9]
[334063745,1722715850082,-500.0,0.00024657,9]
[334063746,1722715850091,-500.0,0.00024657,9]
[334063747,1722715850101,-500.0,0.00024657,9]
[334063748,1722715850111,-636.53,0.00024657,9]
[334063749,1722715850121,-500.0,0.00024657,9]
[334063750,1722715850130,-500.0,0.00024657,9]
[334063751,1722715850139,-500.0,0.00024657,9]
[334063752,1722715850148,-290.53,0.00024657,9]
[334063753,1722715850157,-500.0,0.00024657,9]
[334063754,1722715850166,-500.0,0.00024657,9]
[334063755,1722715850175,-500.0,0.00024657,9]
[334063756,1722715850184,-500.0,0.00024657,9]
[334063757,1722715850194,-500.0,0.00024657,9]
[334063758,1722715850205,-500.0,0.00024657,9]
[334063759,1722715850215,-500.0,0.00024657,9]
[334063760,1722715850224,-500.0,0.00024657,9]
[334063761,1722715850233,-500.0,0.00024657,9]
[334063762,1722715850243,-222.06,0.00024657,9]
[334063763,1722715850252,-500.0,0.00024657,9]
[334063764,1722715850261,-500.0,0.00024657,9]
[334063765,1722715850270,-500.0,0.00024657,9]
[334063766,1722715850279,-500.0,0.00024657,9]
[334063767,1722715850288,-260.53360245,0.00024657,9]
[334063768,1722715850297,-1640.45,0.00024657,9]
[334063769,1722715850307,-258.55,0.00024657,9]
[334063770,1722715850316,-1640.45,0.00024657,9]
[334063771,1722715850325,-500.0,0.00024657,9]
[334063772,1722715850335,-500.0,0.00024657,9]
[334063773,1722715850344,-1640.45,0.00024657,9]
[334063774,1722715850353,-643.23,0.00024657,9]
[334063775,1722715850362,-500.0,0.00024657,9]
[334063776,1722715850372,-1640.45,0.00024657,9]
[334063777,1722715850380,-500.0,0.00024657,9]
[334063778,1722715850390,-1640.45,0.00024657,9]
[334063779,1722715850399,-500.0,0.00024657,9]
[334063780,1722715850407,-206.68,0.00024657,9]
[334063781,1722715850416,-1640.45,0.00024657,9]
[334063782,1722715850426,-500.0,0.00024657,9]
[334063783,1722715850435,-500.0,0.00024657,9]
[334063784,1722715850447,-240.96,0.00024657,9]
[334063785,1722715850456,-500.0,0.00024657,9]
[334063786,1722715850465,-1640.45,0.00024657,9]
[334063787,1722715850474,-513.09,0.00024657,9]
[334063788,1722715850483,-500.0,0.00024657,9]
[334063789,1722715850492,-500.0,0.00024657,9]
[334063790,1722715850502,-1640.45,0.00024657,9]
[334063791,1722715850511,-500.0,0.00024657,9]
[334063792,1722715850521,-500.0,0.00024657,9]
[334063793,1722715850530,-1640.45,0.00024657,9]
[334063794,1722715850539,-1640.45,0.00024657,9]
[334063795,1722715850548,-500.0,0.00024657,9]
[334063796,1722715850557,-1640.45,0.00024657,9]
[334063797,1722715850566,-500.0,0.00024657,9]
[334063798,1722715850575,-1640.45,0.00024657,9]
[334063799,1722715850584,-177.09,0.00024657,9]
[334063800,1722715850593,-1640.45,0.00024657,9]
[334063801,1722715850602,-500.0,0.00024657,2]
[334063802,1722715850611,-1640.45,0.00024657,9]
[334063803,1722715850620,-500.0,0.00024657,9]
[334063804,1722715850629,-208.43,0.00024657,2]
[334063805,1722715850639,-1640.45,0.00024657,9]
[334063806,1722715850649,-387.56,0.00024657,9]
[334063807,1722715850658,-1640.45,0.00024657,9]
[334063808,1722715850668,-1640.45,0.00024657,9]
[334063809,1722715850677,-1640.45,0.00024657,9]
[334063810,1722715850688,-1640.45,0.00024657,9]
[334063811,1722715850699,-500.0,0.00024657,9]
[334063812,1722715850709,-500.0,0.00024657,9]
[334063813,1722715850718,-1640.45,0.00024657,9]
[334063814,1722715850728,-500.0,0.00024657,9]
[334063815,1722715850738,-500.0,0.00024657,9]
[334063816,1722715850747,-1640.45,0.00024657,9]
[334063817,1722715850756,-500.0,0.00024657,9]
[334063818,1722715850765,-500.0,0.00024657,9]
[334063819,1722715850774,-1640.45,0.00024657,9]
[334063820,1722715850783,-1640.45,0.00024657,9]
[334063821,1722715850792,-500.76,0.00024657,9]
[334063822,1722715850802,-1640.58100896,0.00024657,9]
[334063823,1722715850813,-500.0,0.00024657,9]
[334063824,1722715850825,-152.61821955,0.00024657,9]
[334063825,1722715850835,-428.48,0.00024657,9]
[334063826,1722715850844,-500.0,0.00024657,9]
[334063827,1722715850855,-591.72757538,0.00024657,9]
[334063828,1722715850865,-500.0,0.00024657,9]
[334063829,1722715850874,-237.49303383,0.00024657,9]
[334063830,1722715851048,-262.50696617,0.00024657,9]
[334063831,1722715851057,-340.64,0.00024657,9]
[334063832,1722715851066,-212.55021303,0.00024657,9]
[334063833,1722715851077,-250.10479714,0.00024657,9]
[334063834,1722715851092,-139.13498983,0.00024657,9]
[334063835,1722715851101,-404.701645,0.00024657,9]
[334063836,1722715851112,-190.808355,0.00024657,9]
[334063837,1722715851122,-595.51,0.00024657,9]
[334063838,1722715851132,-595.51,0.00024657,9]
[334063839,1722715851142,-595.51,0.00024657,9]
[334063840,1722715851151,-500.0,0.00024657,9]
[334063841,1722715851161,-500.0,0.00024657,9]
[334063842,1722715851170,-595.51,0.00024657,9]
[334063843,1722715851179,-500.0,0.00024657,9]
[334063844,1722715851188,-595.51,0.00024657,9]
[334063845,1722715851197,-525.25,0.00024657,9]
[334063846,1722715851206,-595.51,0.00024657,9]
[334063847,1722715851215,-500.0,0.00024657,9]
[334063848,1722715851224,-500.0,0.00024657,9]
[334063849,1722715851233,-549.47517042,0.00024657,9]
[334063850,1722715851243,-595.51,0.00024657,9]
[334063851,1722715851252,-500.0,0.00024657,9]
[334063852,1722715851261,-595.51,0.00024657,9]
[334063853,1722715851270,-500.0,0.00024657,9]
[334063854,1722715851279,-500.0,0.00024657,9]
[334063855,1722715851289,-595.51,0.00024657,9]
[334063856,1722715851299,-500.0,0.00024657,9]
[334063857,1722715851312,-568.57,0.00024657,9]
[334063858,1722715851322,-595.51,0.00024657,9]
[334063859,1722715851331,-413.83140516,0.00024657,9]
[334063860,1722715851341,-77.0555965,0.00024657,9]
[334063861,1722715851353,-518.4544035,0.00024657,9]
[334063862,1722715851363,-595.51,0.00024657,9]
[334063863,1722715851372,-409.81834615,0.00024657,9]
[334063864,1722715851387,-185.69165385,0.00024657,9]
[334063865,1722715851397,-243.83088615,0.00024657,9]
[334063866,1722715851408,-351.67911385,0.00024657,9]
[334063867,1722715851417,-595.51,0.00024657,9]
[334063868,1722715851427,-500.0,0.00024657,9]
[334063869,1722715851436,-595.51,0.00024657,9]
[334063870,1722715851447,-82.08170691,0.00024657,9]
[334063871,1722715919628,320.0,0.00025495,120]
[334063873,1722716427088,827.55129069,0.00027,120]
[334063874,1722716485560,173.33,0.00025807,120]
[334063875,1722716571887,1000.0,0.00024657,60]
[334063879,1722716834872,150.5,0.000178,30]
[334063880,1722716835385,194.5,0.0001779,30]
[334063883,1722716938852,-180.02,0.000105,3]
[334063924,1722717032089,-219.98,0.000105,3]
[334063926,1722717032100,-205.82797813,0.000105,2]
[334063928,1722717032109,-117.19202187,0.000105,2]
[334063930,1722717032121,-37.80797813,0.000105,2]
[334063932,1722717032130,-293.20460724,0.000105,2]
[334063934,1722717032140,-320.93741463,0.000105,2]
[334063938,1722717032169,-832.29296102,0.000105,2]
[334063940,1722717032182,-170.32137255,0.000105,2]
[334063942,1722717032192,-449.21056611,0.000105,2]
[334063943,1722717032202,-299.62423029,0.000105,2]
[334063945,1722717032212,-1066.95059403,0.000105,2]
[334063947,1722717032225,-2066.72528739,0.000105,2]
[334063949,1722717032234,-577.17401886,0.000106,3]
[334063952,1722717032250,-222.82598114,0.000106,3]
[334063954,1722717032259,-1200.0,0.000107,3]
[334063955,1722717032269,-518.0,0.00010781,2]
[334063957,1722717032279,-1600.0,0.000108,3]
[334063959,1722717032288,-530.21131214,0.0001089,2]
[334063961,1722717032298,-2301.61470211,0.00010899,2]
[334063963,1722717032309,-76.93450307,0.00010899,2]
[334063965,1722717032318,-2000.0,0.000109,3]
[334063967,1722717032327,-1000.0,0.000109,2]
[334063969,1722717032337,-314.78737981,0.000109,2]
[334063971,1722717032346,-174.83539434,0.000109,2]
[334063973,1722717032355,-530.21131215,0.000109,2]
[334063975,1722717032365,-2676.12240114,0.000109,2]
[334063977,1722717032374,-712.50784276,0.000109,2]
[334063979,1722717032383,-1240.71790147,0.0001098,2]
[334063983,1722717032410,-40477.12574335,0.0001098,2]
[334063987,1722717032438,-539.03986726,0.0001098,2]
[334063989,1722717032449,-3175.0,0.0001098,2]
[334064116,1722717038031,-181.68786506,0.000105,2]
[334064117,1722717038042,-143.79213497,0.0001098,2]
[334064119,1722717038659,-1780.0858619,0.0001098,2]
[334064121,1722717038671,-2926.05442802,0.0001098,2]
[334064123,1722717038683,-6065.19103,0.0001098,2]
[334064124,1722717039101,-2919.9,0.0001098,2]
[334064126,1722717039112,-568.94985213,0.0001098,2]
[334064128,1722717039123,-453.30570109,0.0001098,2]
[334064142,1722717040243,-39212.85223734,0.0001098,2]
[334064143,1722717040257,-23881.11837762,0.0001098,2]
[334064144,1722717040267,-283539.59672693,0.0001099,2]
[334064145,1722717040276,-150.99,0.0001099,2]
[334064146,1722717040286,-499.99,0.0001099,2]
[334064147,1722717040296,-155.4,0.0001099,2]
[334064148,1722717040310,-155.4,0.0001099,2]
[334064149,1722717040319,-155.4,0.0001099,2]
[334064150,1722717040328,-155.4,0.0001099,2]
[334064151,1722717040338,-155.4,0.0001099,2]
[334064152,1722717040349,-155.4,0.0001099,2]
[334064153,1722717040359,-1694.62,0.00010997,2]
[334064154,1722717040369,-168.05434709,0.00010997,2]
[334064155,1722717040379,-500.0,0.00010999,2]
[334064156,1722717040388,-191.7832318,0.00010999,2]
[334064157,1722717040398,-500.0,0.00010999,2]
[334064158,1722717040408,-500.0,0.00010999,2]
[334064159,1722717040418,-500.0,0.00010999,2]
[334064160,1722717040428,-416.5017741,0.00010999,2]
[334064161,1722717040437,-350773.96177827,0.00011,2]
[334064162,1722717040449,-254.25,0.00011,2]
[334064163,1722717040476,-1603.97968,0.00011,2]
[334064164,1722717040529,-19258.45448065,0.00011,2]
[334064165,1722717040540,-793.1001132,0.00011,2]
[334064166,1722717040557,-283.81999999,0.00011,2]
[334064382,1722717043098,-494.33920324,0.00011,2]
[334064462,1722717044341,-24935.22661887,0.00011,2]
[334064464,1722717044353,-296.18044634,0.00011,2]
[334064466,1722717044363,-735.84618587,0.00011,2]
[334064469,1722717044374,-2223.22162506,0.00011,2]
[334064472,1722717044394,-1625.7938459,0.00011,2]
[334064474,1722717044405,-632.52348141,0.00011,2]
[334064477,1722717044431,-9022.73171167,0.00011,2]
[334064479,1722717044441,-6325.25353896,0.00011,2]
[334064650,1722717046303,-1741.15,0.00011,2]
[334064652,1722717046314,-7000.0,0.00011,2]
[334064658,1722717046359,-302.57558077,0.00011,2]
[334064660,1722717046371,-3522.69192332,0.00011,2]
[334064666,1722717046419,-1064.7,0.00011,2]
[334064673,1722717046479,-53934.56357263,0.00011,2]
[334064680,1722717046539,-2733.97298494,0.00011,2]
[334064705,1722717046769,-1450.0,0.00011,2]
[334064909,1722717206041,255.04,0.00013658,30]
[334064936,1722718232425,-580.889588,9.669e-05,2]
[334064937,1722718232435,-303.3037382,9.769e-05,2]
[334064938,1722718232448,-385.0,9.769e-05,2]
[334064939,1722718232458,-522.28,9.77e-05,2]
[334064940,1722718232468,-250.0,0.000102,2]
[334064941,1722718232478,-281.5384411,0.00010231,2]
[334064942,1722718232493,-2852.80510775,0.00010231,2]
[334064943,1722718232525,-887.06645115,0.00010231,2]
[334064944,1722718232534,-300.0,0.00010242,2]
[334064945,1722718232543,-2253.0064934,0.00010243,2]
[334064946,1722718232555,-415.09721781,0.00010243,2]
[334064947,1722718232566,-308.807424,0.00010243,2]
[334064948,1722718232638,-1385.69606653,0.00010243,2]
[334064949,1722718232649,-719.56763967,0.00010243,2]
[334064950,1722718232670,-582.92504737,0.00010243,2]
[334064951,1722718232694,-315.29707946,0.00010243,2]
[334064952,1722718232705,-2733.567284,0.00010243,2]
[334064953,1722718232752,-6310.96790771,0.00010243,2]
[334064954,1722718232765,-8875.06784005,0.00010243,2]
[334064955,1722718232774,-10000.0,0.00010313,2]
[334064956,1722718232784,-12993.81,0.00010467,2]
[334064957,1722718232793,-8292.66,0.00010535,2]
[334064958,1722718232802,-754.25,0.00010619,2]
[334064960,1722718232812,-167.58,0.00010694,2]
[334064961,1722718232821,-303.63,0.00010694,2]
[334064962,1722718232831,-150.0,0.00010846,2]
[334064963,1722718232840,-2886.12,0.00010847,2]
[334064964,1722718232849,-7969.88,0.00010847,2]
[334064965,1722718232858,-1701.71,0.00010864,2]
[334064966,1722718232868,-150.99,0.00010864,2]
[334064967,1722718232877,-150.0,0.00010877,2]
[334064968,1722718232886,-893.2677,0.000109,2]
[334064969,1722718232896,-2809.939,0.000109,2]
[334064970,1722718232905,-3421.6897,0.000109,2]